[Event "Titled Tuesday Blitz June 28 Early 2022"]
[White "Lucas, Arthur"]
[Black "Delorme, Alban"]
[WhiteFideId "26093073"]
[BlackFideId "623636"]
[WhiteElo "2129"]
[BlackElo "2197"]
[Result "1-0"]
[Round "02"]
[TimeControl "180+1"]
[Date "2022.06.28"]
[WhiteClock "0:00:11"]
[BlackClock "0:00:42"]

1. e4 {[%clk 0:03:00]}  c5 {[%clk 0:02:58]} 2. Nf3 {[%clk 0:03:00]}  d6 {[%clk 0:02:58]} 3. d4 {[%clk 0:03:00]}  cxd4 {[%clk 0:02:59]} 4. Qxd4 {[%clk 0:02:59]}  Nf6 {[%clk 0:03:00]} 5. h3 {[%clk 0:02:57]}  a6 {[%clk 0:03:00]} 6. Be2 {[%clk 0:02:57]}  Nc6 {[%clk 0:03:00]} 7. Qe3 {[%clk 0:02:58]}  g6 {[%clk 0:02:58]} 8. O-O {[%clk 0:02:57]}  h5 {[%clk 0:02:57]} 9. c4 {[%clk 0:02:55]}  Bh6 {[%clk 0:02:57]} 10. Qc3 {[%clk 0:02:54]}  Bxc1 {[%clk 0:02:58]} 11. Rxc1 {[%clk 0:02:53]}  O-O {[%clk 0:02:58]} 12. Nbd2 {[%clk 0:02:47]}  Nd7 {[%clk 0:02:50]} 13. Rd1 {[%clk 0:02:44]}  Nde5 {[%clk 0:02:48]} 14. Nxe5 {[%clk 0:02:43]}  dxe5 {[%clk 0:02:49]} 15. Nf3 {[%clk 0:02:38]}  Qc7 {[%clk 0:02:45]} 16. b4 {[%clk 0:02:32]}  Be6 {[%clk 0:02:36]} 17. b5 {[%clk 0:02:28]}  Na5 {[%clk 0:02:34]} 18. Qxe5 {[%clk 0:02:13]}  Qxe5 {[%clk 0:02:34]} 19. Nxe5 {[%clk 0:02:14]}  Rac8 {[%clk 0:02:27]} 20. bxa6 {[%clk 0:02:10]}  bxa6 {[%clk 0:02:25]} 21. Rac1 {[%clk 0:02:07]}  Rc5 {[%clk 0:02:20]} 22. Nd7 {[%clk 0:01:56]}  Bxd7 {[%clk 0:02:19]} 23. Rxd7 {[%clk 0:01:57]}  Rfc8 {[%clk 0:02:14]} 24. Rxe7 {[%clk 0:01:49]}  Nxc4 {[%clk 0:02:12]} 25. Ra7 {[%clk 0:01:39]}  a5 {[%clk 0:02:08]} 26. f3 {[%clk 0:01:28]}  Na3 {[%clk 0:01:47]} 27. Rxc5 {[%clk 0:01:23]}  Rxc5 {[%clk 0:01:47]} 28. Kf2 {[%clk 0:01:13]}  Rc2 {[%clk 0:01:38]} 29. Rxa5 {[%clk 0:01:12]}  Rxa2 {[%clk 0:01:35]} 30. f4 {[%clk 0:01:07]}  Ra1 {[%clk 0:01:31]} 31. e5 {[%clk 0:00:58]}  Nc2 {[%clk 0:01:29]} 32. Rxa1 {[%clk 0:00:58]}  Nxa1 {[%clk 0:01:30]} 33. Ke3 {[%clk 0:00:53]}  Nc2+ {[%clk 0:01:29]} 34. Ke4 {[%clk 0:00:47]}  Kg7 {[%clk 0:01:15]} 35. g4 {[%clk 0:00:44]}  hxg4 {[%clk 0:01:15]} 36. hxg4 {[%clk 0:00:44]}  Na1 {[%clk 0:01:04]} 37. Bc4 {[%clk 0:00:41]}  Nc2 {[%clk 0:01:02]} 38. Bb3 {[%clk 0:00:33]}  Na3 {[%clk 0:00:59]} 39. Kd4 {[%clk 0:00:24]}  Nb5+ {[%clk 0:00:59]} 40. Kc4 {[%clk 0:00:21]}  Nc7 {[%clk 0:00:59]} 41. Kc5 {[%clk 0:00:22]}  Na6+ {[%clk 0:00:56]} 42. Kb5 {[%clk 0:00:20]}  Nc7+ {[%clk 0:00:56]} 43. Kc6 {[%clk 0:00:20]}  Na6 {[%clk 0:00:56]} 44. Kd6 {[%clk 0:00:16]}  Nb4 {[%clk 0:00:56]} 45. Ke7 {[%clk 0:00:14]}  Nd3 {[%clk 0:00:54]} 46. Bxf7 {[%clk 0:00:05]}  Nxf4 {[%clk 0:00:51]} 47. e6 {[%clk 0:00:04]}  Nd5+ {[%clk 0:00:44]} 48. Kd8 {[%clk 0:00:04]}  Nf6 {[%clk 0:00:43]} 49. g5 {[%clk 0:00:03]}  Nd5 {[%clk 0:00:41]} 50. e7 {[%clk 0:00:03]}  Nxe7 {[%clk 0:00:36]} 51. Kxe7 {[%clk 0:00:04]}  Kh8 {[%clk 0:00:36]} 52. Bxg6 {[%clk 0:00:03]}  Kg7 {[%clk 0:00:30]} 53. Bh5 {[%clk 0:00:03]}  Kh7 {[%clk 0:00:30]} 54. Kf7 {[%clk 0:00:03]}  Kh8 {[%clk 0:00:30]} 55. Kf6 {[%clk 0:00:01]}  Kh7 {[%clk 0:00:31]} 56. Bg4 {[%clk 0:00:02]}  Kh8 {[%clk 0:00:32]} 57. Bf3 {[%clk 0:00:03]}  Kg8 {[%clk 0:00:33]} 58. Be2 {[%clk 0:00:04]}  Kf8 {[%clk 0:00:34]} 59. Bd1 {[%clk 0:00:05]}  Kg8 {[%clk 0:00:35]} 60. Kg6 {[%clk 0:00:05]}  Kf8 {[%clk 0:00:36]} 61. Kh7 {[%clk 0:00:06]}  Kf7 {[%clk 0:00:36]} 62. g6+ {[%clk 0:00:06]}  Ke6 {[%clk 0:00:37]} 63. g7 {[%clk 0:00:07]}  Ke5 {[%clk 0:00:38]} 64. g8=Q {[%clk 0:00:08]}  Ke4 {[%clk 0:00:39]} 65. Qg7 {[%clk 0:00:08]}  Ke3 {[%clk 0:00:40]} 66. Bh5 {[%clk 0:00:09]}  Kd3 {[%clk 0:00:41]} 67. Bf7 {[%clk 0:00:09]}  Kd2 {[%clk 0:00:42]} 68. Bg8 {[%clk 0:00:10]}  Kd3 {[%clk 0:00:42]} 69. Qe5 {[%clk 0:00:11]} 1-0


[Site "https://www.chess.com"]

[Event "Titled Tuesday Blitz June 28 Early 2022"]
[White "Maiorov, Nikita"]
[Black "Jubin Jimmy"]
[WhiteFideId "13501720"]
[BlackFideId "46686614"]
[WhiteElo "2417"]
[BlackElo "2219"]
[Result "0-1"]
[Round "02"]
[TimeControl "180+1"]
[Date "2022.06.28"]
[WhiteClock "0:00:01"]
[BlackClock "0:00:49"]

1. d4 {[%clk 0:02:58]}  Nf6 {[%clk 0:02:59]} 2. c4 {[%clk 0:02:57]}  e6 {[%clk 0:03:00]} 3. Nf3 {[%clk 0:02:56]}  Bb4+ {[%clk 0:03:00]} 4. Bd2 {[%clk 0:02:54]}  Bxd2+ {[%clk 0:03:00]} 5. Qxd2 {[%clk 0:02:54]}  d5 {[%clk 0:03:00]} 6. Nc3 {[%clk 0:02:53]}  O-O {[%clk 0:02:59]} 7. e3 {[%clk 0:02:53]}  Qe7 {[%clk 0:02:59]} 8. cxd5 {[%clk 0:02:52]}  exd5 {[%clk 0:03:00]} 9. Bd3 {[%clk 0:02:52]}  c6 {[%clk 0:03:00]} 10. h3 {[%clk 0:02:52]}  Nbd7 {[%clk 0:02:52]} 11. Qc2 {[%clk 0:02:51]}  Re8 {[%clk 0:02:52]} 12. O-O {[%clk 0:02:51]}  Nf8 {[%clk 0:02:51]} 13. Rae1 {[%clk 0:02:22]}  Ng6 {[%clk 0:02:50]} 14. a3 {[%clk 0:02:07]}  Ne4 {[%clk 0:02:43]} 15. Nd2 {[%clk 0:02:06]}  f5 {[%clk 0:02:39]} 16. f4 {[%clk 0:02:04]}  Be6 {[%clk 0:02:28]} 17. Nf3 {[%clk 0:02:03]}  Nf8 {[%clk 0:02:28]} 18. Kh2 {[%clk 0:02:02]}  Nd7 {[%clk 0:02:27]} 19. Rg1 {[%clk 0:02:01]}  Kh8 {[%clk 0:02:24]} 20. g4 {[%clk 0:01:59]}  fxg4 {[%clk 0:02:20]} 21. hxg4 {[%clk 0:01:58]}  Ndf6 {[%clk 0:02:19]} 22. f5 {[%clk 0:01:46]}  Qd6+ {[%clk 0:02:05]} 23. Ne5 {[%clk 0:01:43]}  Bd7 {[%clk 0:02:00]} 24. Bxe4 {[%clk 0:01:42]}  Rxe5 {[%clk 0:01:59]} 25. dxe5 {[%clk 0:01:41]}  Qxe5+ {[%clk 0:01:59]} 26. Kh3 {[%clk 0:01:41]}  dxe4 {[%clk 0:01:58]} 27. Qh2 {[%clk 0:01:37]}  Qc5 {[%clk 0:01:53]} 28. Qf4 {[%clk 0:01:36]}  h5 {[%clk 0:01:47]} 29. Nxe4 {[%clk 0:01:20]}  hxg4+ {[%clk 0:01:46]} 30. Kh2 {[%clk 0:00:44]}  Qc2+ {[%clk 0:01:35]} 31. Nf2 {[%clk 0:00:43]}  Nh5 {[%clk 0:01:27]} 32. Qxg4 {[%clk 0:00:22]}  Qxf2+ {[%clk 0:01:26]} 33. Rg2 {[%clk 0:00:23]}  Qxf5 {[%clk 0:01:13]} 34. Qxf5 {[%clk 0:00:20]}  Bxf5 {[%clk 0:01:13]} 35. Rg5 {[%clk 0:00:20]}  g6 {[%clk 0:01:12]} 36. e4 {[%clk 0:00:20]}  Be6 {[%clk 0:01:08]} 37. Rxg6 {[%clk 0:00:20]}  Bf7 {[%clk 0:01:09]} 38. Rd6 {[%clk 0:00:18]}  Re8 {[%clk 0:01:08]} 39. Rg1 {[%clk 0:00:17]}  Ng7 {[%clk 0:01:02]} 40. Rd7 {[%clk 0:00:15]}  Kg8 {[%clk 0:01:03]} 41. Rg4 {[%clk 0:00:09]}  b5 {[%clk 0:00:59]} 42. Rxa7 {[%clk 0:00:09]}  Kf8 {[%clk 0:01:00]} 43. Rf4 {[%clk 0:00:08]}  Re7 {[%clk 0:01:00]} 44. Ra8+ {[%clk 0:00:08]}  Ne8 {[%clk 0:01:00]} 45. Rc8 {[%clk 0:00:07]}  Re6 {[%clk 0:01:00]} 46. Kg3 {[%clk 0:00:06]}  Ke7 {[%clk 0:01:01]} 47. Ra8 {[%clk 0:00:06]}  Nf6 {[%clk 0:00:59]} 48. Ra7+ {[%clk 0:00:04]}  Ke8 {[%clk 0:01:00]} 49. Kf3 {[%clk 0:00:04]}  Bh5+ {[%clk 0:01:00]} 50. Kg2 {[%clk 0:00:04]}  Nxe4 {[%clk 0:00:55]} 51. Rf5 {[%clk 0:00:03]}  Bg6 {[%clk 0:00:53]} 52. Ra8+ {[%clk 0:00:02]}  Ke7 {[%clk 0:00:53]} 53. Ra7+ {[%clk 0:00:03]}  Kd6 {[%clk 0:00:53]} 54. Rf8 {[%clk 0:00:03]}  Kc5 {[%clk 0:00:50]} 55. Rc8 {[%clk 0:00:01]}  Nd6 {[%clk 0:00:49]} 56. b4+ {[%clk 0:00:01]}  Kd5 {[%clk 0:00:49]} 0-1


[Site "https://www.chess.com"]

[Event "Titled Tuesday Blitz June 28 Early 2022"]
[White "Marin Ramirez, Gerardo"]
[Black "Jaskolka, Tomasz"]
[WhiteFideId "3901068"]
[BlackFideId "1170791"]
[WhiteElo "1920"]
[BlackElo "2073"]
[Result "1-0"]
[Round "02"]
[TimeControl "180+1"]
[Date "2022.06.28"]
[WhiteClock "0:00:22"]
[BlackClock "0:00:44"]

1. d4 {[%clk 0:02:04]}  e6 {[%clk 0:02:53]} 2. Nf3 {[%clk 0:02:05]}  f5 {[%clk 0:02:53]} 3. c4 {[%clk 0:02:06]}  Nf6 {[%clk 0:02:53]} 4. g3 {[%clk 0:02:06]}  Be7 {[%clk 0:02:53]} 5. Bg2 {[%clk 0:02:07]}  d6 {[%clk 0:02:54]} 6. Nc3 {[%clk 0:02:07]}  O-O {[%clk 0:02:55]} 7. O-O {[%clk 0:02:08]}  Qe8 {[%clk 0:02:55]} 8. Qb3 {[%clk 0:02:06]}  Qh5 {[%clk 0:02:41]} 9. h3 {[%clk 0:01:56]}  Nc6 {[%clk 0:02:36]} 10. d5 {[%clk 0:01:52]}  Nd4 {[%clk 0:02:36]} 11. Nxd4 {[%clk 0:01:51]}  e5 {[%clk 0:02:29]} 12. Ne6 {[%clk 0:01:49]}  Bxe6 {[%clk 0:02:25]} 13. dxe6 {[%clk 0:01:48]}  Rab8 {[%clk 0:02:25]} 14. Nd5 {[%clk 0:01:43]}  Nxd5 {[%clk 0:02:22]} 15. cxd5 {[%clk 0:01:44]}  f4 {[%clk 0:02:22]} 16. g4 {[%clk 0:01:43]}  Qh4 {[%clk 0:02:22]} 17. Qd3 {[%clk 0:01:38]}  Rf6 {[%clk 0:02:20]} 18. f3 {[%clk 0:01:28]}  c6 {[%clk 0:02:18]} 19. Bd2 {[%clk 0:01:25]}  Bd8 {[%clk 0:02:14]} 20. Be1 {[%clk 0:01:22]}  Bb6+ {[%clk 0:02:13]} 21. Bf2 {[%clk 0:01:22]}  h5 {[%clk 0:02:10]} 22. Rac1 {[%clk 0:01:10]}  hxg4 {[%clk 0:01:59]} 23. fxg4 {[%clk 0:01:09]}  Bxf2+ {[%clk 0:01:42]} 24. Rxf2 {[%clk 0:01:08]}  c5 {[%clk 0:01:43]} 25. Rcf1 {[%clk 0:01:00]}  Kf8 {[%clk 0:01:42]} 26. e3 {[%clk 0:01:00]}  g5 {[%clk 0:01:42]} 27. exf4 {[%clk 0:00:58]}  gxf4 {[%clk 0:01:42]} 28. b4 {[%clk 0:00:51]}  b6 {[%clk 0:01:41]} 29. Rb1 {[%clk 0:00:47]}  Rc8 {[%clk 0:01:39]} 30. bxc5 {[%clk 0:00:47]}  Rxc5 {[%clk 0:01:39]} 31. Rbf1 {[%clk 0:00:32]}  Ke7 {[%clk 0:01:39]} 32. Rc2 {[%clk 0:00:31]}  Qh8 {[%clk 0:01:15]} 33. Rxc5 {[%clk 0:00:31]}  bxc5 {[%clk 0:01:14]} 34. Rb1 {[%clk 0:00:29]}  Qc8 {[%clk 0:01:13]} 35. Qb5 {[%clk 0:00:28]}  Rf8 {[%clk 0:01:07]} 36. Qb7+ {[%clk 0:00:26]}  Kf6 {[%clk 0:01:07]} 37. Qh7 {[%clk 0:00:24]}  Qa6 {[%clk 0:00:55]} 38. Rb7 {[%clk 0:00:23]}  Kg5 {[%clk 0:00:44]} 39. Qh5+ {[%clk 0:00:21]}  Kf6 {[%clk 0:00:44]} 40. Qf5# {[%clk 0:00:22]} 1-0


[Site "https://www.chess.com"]

[Event "Titled Tuesday Blitz June 28 Early 2022"]
[White "Matveeva, Olga"]
[Black "Nozdrachev, Leonid"]
[WhiteFideId "24107018"]
[BlackFideId "24113433"]
[WhiteElo "2052"]
[BlackElo "2129"]
[Result "0-1"]
[Round "02"]
[TimeControl "180+1"]
[Date "2022.06.28"]
[WhiteClock "0:00:20"]
[BlackClock "0:00:57"]

1. d4 {[%clk 0:03:00]}  d6 {[%clk 0:02:58]} 2. Nf3 {[%clk 0:03:00]}  f5 {[%clk 0:02:57]} 3. c4 {[%clk 0:02:58]}  g6 {[%clk 0:02:56]} 4. g3 {[%clk 0:02:57]}  Bg7 {[%clk 0:02:56]} 5. Bg2 {[%clk 0:02:58]}  e5 {[%clk 0:02:56]} 6. dxe5 {[%clk 0:02:56]}  dxe5 {[%clk 0:02:57]} 7. Qxd8+ {[%clk 0:02:55]}  Kxd8 {[%clk 0:02:58]} 8. O-O {[%clk 0:02:55]}  c6 {[%clk 0:02:58]} 9. e4 {[%clk 0:02:50]}  Kc7 {[%clk 0:02:54]} 10. exf5 {[%clk 0:02:44]}  Bxf5 {[%clk 0:02:55]} 11. Re1 {[%clk 0:02:43]}  Nd7 {[%clk 0:02:49]} 12. Nc3 {[%clk 0:02:37]}  Re8 {[%clk 0:02:44]} 13. Ng5 {[%clk 0:02:33]}  Nh6 {[%clk 0:02:42]} 14. Be3 {[%clk 0:02:30]}  Ng4 {[%clk 0:02:38]} 15. Rad1 {[%clk 0:02:19]}  Nxe3 {[%clk 0:02:35]} 16. Rxe3 {[%clk 0:02:20]}  Nc5 {[%clk 0:02:21]} 17. b4 {[%clk 0:02:08]}  Ne6 {[%clk 0:02:19]} 18. Nf7 {[%clk 0:02:05]}  Rhf8 {[%clk 0:02:13]} 19. Nxe5 {[%clk 0:02:01]}  Re7 {[%clk 0:02:03]} 20. f4 {[%clk 0:01:59]}  g5 {[%clk 0:01:50]} 21. Nf3 {[%clk 0:01:28]}  gxf4 {[%clk 0:01:46]} 22. gxf4 {[%clk 0:01:29]}  Bxc3 {[%clk 0:01:43]} 23. Rxc3 {[%clk 0:01:28]}  Nxf4 {[%clk 0:01:43]} 24. Nd4 {[%clk 0:01:17]}  Rd7 {[%clk 0:01:17]} 25. Re3 {[%clk 0:01:01]}  Rfd8 {[%clk 0:01:11]} 26. Re5 {[%clk 0:00:38]}  Bg4 {[%clk 0:01:00]} 27. Rf1 {[%clk 0:00:20]}  Rxd4 {[%clk 0:00:57]} 0-1


[Site "https://www.chess.com"]

[Event "Titled Tuesday Blitz June 28 Early 2022"]
[White "Melkumyan, Hrant"]
[Black "Guz, Ari"]
[WhiteFideId "13302485"]
[BlackFideId "2825759"]
[WhiteElo "2604"]
[BlackElo "1913"]
[Result "0-1"]
[Round "02"]
[TimeControl "180+1"]
[Date "2022.06.28"]
[WhiteClock "0:00:01"]
[BlackClock "0:00:08"]

1. Nf3 {[%clk 0:03:00]}  Nf6 {[%clk 0:02:59]} 2. e3 {[%clk 0:03:01]}  b6 {[%clk 0:03:00]} 3. c4 {[%clk 0:02:59]}  Bb7 {[%clk 0:03:00]} 4. Nc3 {[%clk 0:02:59]}  e6 {[%clk 0:03:00]} 5. b3 {[%clk 0:02:57]}  d5 {[%clk 0:03:00]} 6. Bb2 {[%clk 0:02:57]}  Nbd7 {[%clk 0:03:01]} 7. cxd5 {[%clk 0:02:50]}  exd5 {[%clk 0:03:01]} 8. g3 {[%clk 0:02:45]}  d4 {[%clk 0:02:45]} 9. Nb5 {[%clk 0:02:43]}  dxe3 {[%clk 0:02:43]} 10. fxe3 {[%clk 0:02:42]}  a6 {[%clk 0:02:36]} 11. Nc3 {[%clk 0:02:37]}  Nc5 {[%clk 0:02:28]} 12. d4 {[%clk 0:02:13]}  Nce4 {[%clk 0:02:29]} 13. Rc1 {[%clk 0:01:48]}  Nxc3 {[%clk 0:02:17]} 14. Bxc3 {[%clk 0:01:47]}  Ne4 {[%clk 0:02:18]} 15. Bb2 {[%clk 0:01:12]}  Bb4+ {[%clk 0:02:17]} 16. Ke2 {[%clk 0:01:13]}  O-O {[%clk 0:02:18]} 17. Bg2 {[%clk 0:01:05]}  Re8 {[%clk 0:02:05]} 18. Qc2 {[%clk 0:00:58]}  a5 {[%clk 0:01:41]} 19. a3 {[%clk 0:00:40]}  Ba6+ {[%clk 0:01:41]} 20. Kd1 {[%clk 0:00:40]}  Bd2 {[%clk 0:01:03]} 21. Nxd2 {[%clk 0:00:15]}  Nf2+ {[%clk 0:01:03]} 22. Ke1 {[%clk 0:00:15]}  Nd3+ {[%clk 0:01:04]} 23. Kd1 {[%clk 0:00:16]}  Nf2+ {[%clk 0:00:12]} 24. Ke1 {[%clk 0:00:16]}  Nd3+ {[%clk 0:00:13]} 25. Kf1 {[%clk 0:00:17]}  Nxb2+ {[%clk 0:00:13]} 26. Nc4 {[%clk 0:00:17]}  Nxc4 {[%clk 0:00:13]} 27. bxc4 {[%clk 0:00:18]}  Rxe3 {[%clk 0:00:14]} 28. Qf2 {[%clk 0:00:09]}  Re8 {[%clk 0:00:10]} 29. Bxa8 {[%clk 0:00:09]}  Qxa8 {[%clk 0:00:11]} 30. Kg1 {[%clk 0:00:08]}  Qd8 {[%clk 0:00:08]} 31. h4 {[%clk 0:00:08]}  Re4 {[%clk 0:00:09]} 32. d5 {[%clk 0:00:06]}  Bxc4 {[%clk 0:00:08]} 33. Rh2 {[%clk 0:00:06]}  Bxd5 {[%clk 0:00:08]} 34. Qd2 {[%clk 0:00:06]}  h6 {[%clk 0:00:06]} 35. Rf2 {[%clk 0:00:07]}  Qd6 {[%clk 0:00:06]} 36. Rc3 {[%clk 0:00:05]}  Qe5 {[%clk 0:00:06]} 37. Rd3 {[%clk 0:00:05]}  Re1+ {[%clk 0:00:06]} 38. Rf1 {[%clk 0:00:06]}  Rxf1+ {[%clk 0:00:07]} 39. Kxf1 {[%clk 0:00:07]}  Be4 {[%clk 0:00:07]} 40. Re3 {[%clk 0:00:07]}  Qf5+ {[%clk 0:00:07]} 41. Kg1 {[%clk 0:00:07]}  Bc6 {[%clk 0:00:08]} 42. Qf2 {[%clk 0:00:06]}  Qg6 {[%clk 0:00:07]} 43. Qe1 {[%clk 0:00:07]}  Kh7 {[%clk 0:00:07]} 44. Qc3 {[%clk 0:00:07]}  Qb1+ {[%clk 0:00:06]} 45. Re1 {[%clk 0:00:08]}  Qg6 {[%clk 0:00:07]} 46. h5 {[%clk 0:00:08]}  Qd6 {[%clk 0:00:06]} 47. Re3 {[%clk 0:00:08]}  Bd5 {[%clk 0:00:06]} 48. Qd3+ {[%clk 0:00:08]}  g6 {[%clk 0:00:06]} 49. hxg6+ {[%clk 0:00:08]}  fxg6 {[%clk 0:00:07]} 50. Qe2 {[%clk 0:00:08]}  Kg7 {[%clk 0:00:07]} 51. Qb2+ {[%clk 0:00:07]}  Qf6 {[%clk 0:00:06]} 52. Re7+ {[%clk 0:00:06]}  Bf7 {[%clk 0:00:07]} 53. Qxf6+ {[%clk 0:00:06]}  Kxf6 {[%clk 0:00:07]} 54. Rxc7 {[%clk 0:00:06]}  Bd5 {[%clk 0:00:08]} 55. Rd7 {[%clk 0:00:06]}  Ke5 {[%clk 0:00:08]} 56. Kf2 {[%clk 0:00:05]}  b5 {[%clk 0:00:06]} 57. Ra7 {[%clk 0:00:05]}  b4 {[%clk 0:00:06]} 58. a4 {[%clk 0:00:04]}  b3 {[%clk 0:00:05]} 59. Rxa5 {[%clk 0:00:05]}  Kd4 {[%clk 0:00:06]} 60. Ke1 {[%clk 0:00:02]}  b2 {[%clk 0:00:04]} 61. Rb5 {[%clk 0:00:01]}  Kc3 {[%clk 0:00:05]} 62. Rc5+ {[%clk 0:00:02]}  Bc4 {[%clk 0:00:05]} 63. Kf2 {[%clk 0:00:01]}  b1=Q {[%clk 0:00:05]} 64. Re5 {[%clk 0:00:02]}  Qc2+ {[%clk 0:00:06]} 65. Ke3 {[%clk 0:00:02]}  Qd2+ {[%clk 0:00:07]} 66. Ke4 {[%clk 0:00:02]}  Qd4+ {[%clk 0:00:07]} 67. Kf3 {[%clk 0:00:01]}  Qxe5 {[%clk 0:00:08]} 0-1


[Site "https://www.chess.com"]

[Event "Titled Tuesday Blitz June 28 Early 2022"]
[White "Meshkovs, Nikita"]
[Black "Cruz Ravina, Francisco Javier"]
[WhiteFideId "11602740"]
[BlackFideId "2228939"]
[WhiteElo "2506"]
[BlackElo "2571"]
[Result "0-1"]
[Round "02"]
[TimeControl "180+1"]
[Date "2022.06.28"]
[WhiteClock "0:00:18"]
[BlackClock "0:00:20"]

1. e4 {[%clk 0:02:59]}  d5 {[%clk 0:02:59]} 2. exd5 {[%clk 0:02:58]}  Nf6 {[%clk 0:02:58]} 3. Nc3 {[%clk 0:02:52]}  Nxd5 {[%clk 0:02:57]} 4. Bc4 {[%clk 0:02:48]}  Nb6 {[%clk 0:02:56]} 5. Bb3 {[%clk 0:02:46]}  Nc6 {[%clk 0:02:55]} 6. Nf3 {[%clk 0:02:46]}  Bf5 {[%clk 0:02:52]} 7. O-O {[%clk 0:02:41]}  e6 {[%clk 0:02:51]} 8. d3 {[%clk 0:02:31]}  Na5 {[%clk 0:02:50]} 9. Bg5 {[%clk 0:02:26]}  Be7 {[%clk 0:02:47]} 10. Bxe7 {[%clk 0:02:24]}  Qxe7 {[%clk 0:02:47]} 11. Nd4 {[%clk 0:02:25]}  Bg6 {[%clk 0:02:45]} 12. Qf3 {[%clk 0:02:25]}  Rd8 {[%clk 0:02:27]} 13. Nde2 {[%clk 0:02:19]}  Qc5 {[%clk 0:02:13]} 14. Nf4 {[%clk 0:02:17]}  O-O {[%clk 0:02:07]} 15. Rfe1 {[%clk 0:01:55]}  a6 {[%clk 0:02:06]} 16. Nxg6 {[%clk 0:01:20]}  hxg6 {[%clk 0:02:05]} 17. Ne4 {[%clk 0:01:21]}  Qe5 {[%clk 0:01:44]} 18. Qh3 {[%clk 0:01:11]}  Nxb3 {[%clk 0:01:34]} 19. axb3 {[%clk 0:01:11]}  Nd5 {[%clk 0:01:26]} 20. Qh4 {[%clk 0:00:57]}  Qh5 {[%clk 0:01:22]} 21. Qxh5 {[%clk 0:00:52]}  gxh5 {[%clk 0:01:21]} 22. Nc5 {[%clk 0:00:52]}  b6 {[%clk 0:01:13]} 23. Nxa6 {[%clk 0:00:52]}  Ra8 {[%clk 0:01:12]} 24. g3 {[%clk 0:00:40]}  Rfc8 {[%clk 0:01:08]} 25. c4 {[%clk 0:00:39]}  Nf6 {[%clk 0:01:06]} 26. b4 {[%clk 0:00:39]}  c6 {[%clk 0:01:03]} 27. Ra3 {[%clk 0:00:37]}  Ra7 {[%clk 0:00:58]} 28. Kf1 {[%clk 0:00:35]}  Rd8 {[%clk 0:00:55]} 29. Ke2 {[%clk 0:00:35]}  Ng4 {[%clk 0:00:50]} 30. h3 {[%clk 0:00:30]}  Ne5 {[%clk 0:00:49]} 31. Rea1 {[%clk 0:00:30]}  Rad7 {[%clk 0:00:43]} 32. b5 {[%clk 0:00:20]}  cxb5 {[%clk 0:00:41]} 33. cxb5 {[%clk 0:00:21]}  Nxd3 {[%clk 0:00:38]} 34. Rb3 {[%clk 0:00:18]}  h4 {[%clk 0:00:30]} 35. gxh4 {[%clk 0:00:18]}  Nf4+ {[%clk 0:00:29]} 36. Kf3 {[%clk 0:00:18]}  e5 {[%clk 0:00:28]} 37. Nb4 {[%clk 0:00:17]}  f5 {[%clk 0:00:22]} 38. Nc6 {[%clk 0:00:18]}  Rd3+ {[%clk 0:00:20]} 39. Rxd3 {[%clk 0:00:18]}  Rxd3# {[%clk 0:00:20]} 0-1


[Site "https://www.chess.com"]

[Event "Titled Tuesday Blitz June 28 Early 2022"]
[White "Mogirzan, Matei-Valeriu"]
[Black "Ozates, Tuna"]
[WhiteFideId "1257455"]
[BlackFideId "6354521"]
[WhiteElo "1733"]
[BlackElo "1887"]
[Result "1-0"]
[Round "02"]
[TimeControl "180+1"]
[Date "2022.06.28"]
[WhiteClock "0:00:50"]
[BlackClock "0:01:07"]

1. e4 {[%clk 0:03:00]}  Nf6 {[%clk 0:02:56]} 2. e5 {[%clk 0:03:01]}  Nd5 {[%clk 0:02:56]} 3. c4 {[%clk 0:03:01]}  Nb6 {[%clk 0:02:55]} 4. c5 {[%clk 0:03:01]}  Nd5 {[%clk 0:02:55]} 5. Nc3 {[%clk 0:03:02]}  e6 {[%clk 0:02:52]} 6. Nf3 {[%clk 0:03:01]}  Bxc5 {[%clk 0:02:49]} 7. d4 {[%clk 0:03:01]}  Bb4 {[%clk 0:02:49]} 8. Bd2 {[%clk 0:03:00]}  Nxc3 {[%clk 0:02:49]} 9. bxc3 {[%clk 0:03:01]}  Be7 {[%clk 0:02:49]} 10. Bd3 {[%clk 0:03:01]}  O-O {[%clk 0:02:48]} 11. h4 {[%clk 0:03:01]}  h6 {[%clk 0:02:38]} 12. Bb1 {[%clk 0:02:59]}  f5 {[%clk 0:02:38]} 13. exf6 {[%clk 0:02:59]}  Bxf6 {[%clk 0:02:36]} 14. Ng5 {[%clk 0:02:46]}  Nc6 {[%clk 0:02:19]} 15. Qc2 {[%clk 0:02:39]}  Bxg5 {[%clk 0:02:18]} 16. Qh7+ {[%clk 0:02:25]}  Kf7 {[%clk 0:02:18]} 17. hxg5 {[%clk 0:02:09]}  hxg5 {[%clk 0:02:11]} 18. Qg6+ {[%clk 0:02:04]}  Ke7 {[%clk 0:02:10]} 19. Bxg5+ {[%clk 0:02:04]}  Rf6 {[%clk 0:02:08]} 20. Qxg7+ {[%clk 0:02:04]}  Kd6 {[%clk 0:02:07]} 21. Bxf6 {[%clk 0:02:02]}  Qe8 {[%clk 0:02:07]} 22. Qg3+ {[%clk 0:02:01]}  Kd5 {[%clk 0:02:06]} 23. Qf3+ {[%clk 0:01:52]}  Kc4 {[%clk 0:02:06]} 24. Bd3+ {[%clk 0:01:51]}  Kxc3 {[%clk 0:02:05]} 25. Rc1+ {[%clk 0:01:47]}  Kb4 {[%clk 0:02:03]} 26. Rb1+ {[%clk 0:01:44]}  Ka5 {[%clk 0:02:00]} 27. Rb5+ {[%clk 0:01:21]}  Ka6 {[%clk 0:01:52]} 28. Rb3+ {[%clk 0:01:15]}  Ka5 {[%clk 0:01:51]} 29. O-O {[%clk 0:01:10]}  a6 {[%clk 0:01:41]} 30. Rfb1 {[%clk 0:01:06]}  b5 {[%clk 0:01:41]} 31. Bxb5 {[%clk 0:01:01]}  d5 {[%clk 0:01:13]} 32. Ra3+ {[%clk 0:00:54]}  Kb6 {[%clk 0:01:13]} 33. Bxa6+ {[%clk 0:00:54]}  Ka7 {[%clk 0:01:07]} 34. Bb7+ {[%clk 0:00:50]} 1-0


[Site "https://www.chess.com"]